{"text_format":"1","workbook":"xlsx","n_sheets":2,"sheets":["報告書","報告書入力例"],"not_rendered":{"charts":0,"images":0,"macros":1,"external_links":0,"defined_names":8,"comments":0,"pivot_tables":0},"unopened":[],"bounds":{"document_bytes":16777216,"sheet_cells":100000,"rows_first":2000,"rows_last":500,"rows_between":2000,"halvings":0,"cell_chars":16384,"cell_head_chars":4096},"cells_cut":0,"cells_raw":0,"read":"whole","date_system":"1900"}

{"sheet":"報告書","index":0,"n_rows":57,"n_cols":115,"rows_kept":57,"cut":false,"hidden":false,"merged":[[14,105,14,112],[10,101,10,102],[11,101,11,102],[10,103,10,109],[11,103,11,109],[13,103,13,104],[13,106,13,107],[13,109,13,110],[10,110,10,111],[11,110,11,111],[5,2,5,4],[5,6,5,9],[7,56,8,57],[17,74,19,86],[17,8,19,20],[17,21,19,33],[17,34,19,46],[17,61,19,73],[17,47,19,59],[10,33,11,37],[7,42,8,50],[7,39,8,41],[7,1,8,4],[9,5,10,31],[7,5,8,31],[13,1,14,4],[13,5,14,28],[11,1,12,4],[11,5,12,31],[13,29,14,31],[16,1,18,7],[16,8,16,59],[19,1,21,7],[21,8,21,10],[17,87,19,99],[27,90,27,99],[28,90,28,99],[29,90,29,99],[25,90,25,99],[20,87,20,89],[22,90,22,99],[24,90,24,99],[23,90,23,99],[24,87,24,89],[26,90,26,99],[41,111,41,112],[36,90,36,99],[40,90,41,97],[40,103,41,110],[41,98,41,99],[35,90,35,99],[33,90,33,99],[34,90,34,99],[21,103,36,112],[30,90,30,99],[27,87,27,89],[26,87,26,89],[25,87,25,89],[40,100,41,101],[37,90,37,99],[38,90,38,97],[37,100,38,101],[37,87,38,88],[40,87,41,88],[32,90,32,99],[31,90,31,99],[21,100,36,102],[25,74,25,76],[26,74,26,76],[27,74,27,76],[28,74,28,76],[35,74,35,76],[26,77,26,86],[27,77,27,86],[28,77,28,86],[29,77,29,86],[30,77,30,86],[29,74,29,76],[30,74,30,76],[32,77,32,86],[33,77,33,86],[33,74,33,76],[31,74,31,76],[32,74,32,76],[31,77,31,86],[25,77,25,86],[36,74,36,76],[34,77,34,86],[35,77,35,86],[36,77,36,86],[34,74,34,76],[35,64,35,73],[36,64,36,73],[42,87,43,88],[42,77,43,86],[36,87,36,89],[40,79,41,81],[37,61,38,63],[37,64,38,73],[36,61,36,63],[35,61,35,63],[22,64,22,73],[23,64,23,73],[24,64,24,73],[25,64,25,73],[26,64,26,73],[27,64,27,73],[28,64,28,73],[29,64,29,73],[30,64,30,73],[32,61,32,63],[33,61,33,63],[34,61,34,63],[31,64,31,73],[32,64,32,73],[33,64,33,73],[34,64,34,73],[31,61,31,63],[22,61,22,63],[23,61,23,63],[24,61,24,63],[25,61,25,63],[26,61,26,63],[27,61,27,63],[28,61,28,63],[30,50,30,59],[29,61,29,63],[30,61,30,63],[29,47,29,49],[30,47,30,49],[26,50,26,59],[27,50,27,59],[28,50,28,59],[29,50,29,59],[36,47,36,49],[28,37,28,46],[29,37,29,46],[31,47,31,49],[32,47,32,49],[33,47,33,49],[34,47,34,49],[35,47,35,49],[31,50,31,59],[32,50,32,59],[33,50,33,59],[34,50,34,59],[35,50,35,59],[34,37,34,46],[30,21,30,23],[32,21,32,23],[33,21,33,23],[34,21,34,23],[35,21,35,23],[25,21,25,23],[26,21,26,23],[27,21,27,23],[33,24,33,33],[34,24,34,33],[35,24,35,33],[29,24,29,33],[30,24,30,33],[31,24,31,33],[32,24,32,33],[34,1,34,3],[35,1,35,3],[34,11,34,20],[35,11,35,20],[35,4,35,5],[35,6,35,7],[32,8,32,10],[33,8,33,10],[34,8,34,10],[42,33,43,34],[37,24,38,33],[36,50,36,59],[17,100,19,112],[40,37,41,46],[22,37,22,46],[23,37,23,46],[24,37,24,46],[20,61,20,63],[25,37,25,46],[26,34,26,36],[27,34,27,36],[25,34,25,36],[38,50,38,57],[36,34,36,36],[42,47,43,49],[42,50,43,57],[40,29,41,36],[42,29,43,30],[42,31,43,32],[25,24,25,33],[26,24,26,33],[27,24,27,33],[28,24,28,33],[37,21,38,23],[36,6,36,7],[36,11,36,20],[36,21,36,23],[37,1,38,7],[36,1,36,3],[36,4,36,5],[36,8,36,10],[25,4,25,5],[33,6,33,7],[34,4,34,5],[34,6,34,7],[37,8,38,10],[35,8,35,10],[26,4,26,5],[27,4,27,5],[28,4,28,5],[33,4,33,5],[28,8,28,10],[29,8,29,10],[28,6,28,7],[29,6,29,7],[28,11,28,20],[25,6,25,7],[29,4,29,5],[31,4,31,5],[32,4,32,5],[30,4,30,5],[30,6,30,7],[22,8,22,10],[23,8,23,10],[30,8,30,10],[24,8,24,10],[26,8,26,10],[22,4,22,5],[23,4,23,5],[24,4,24,5],[24,6,24,7],[31,6,31,7],[32,6,32,7],[20,8,20,10],[20,21,20,23],[31,8,31,10],[27,8,27,10],[22,6,22,7],[23,6,23,7],[25,8,25,10],[24,21,24,23],[22,11,22,20],[23,11,23,20],[22,21,22,23],[23,21,23,23],[21,11,21,20],[21,21,21,23],[24,11,24,20],[20,11,20,20],[30,11,30,20],[25,11,25,20],[26,11,26,20],[27,11,27,20],[28,21,28,23],[29,21,29,23],[26,6,26,7],[27,6,27,7],[20,90,20,99],[20,64,20,73],[21,77,21,86],[21,74,21,76],[20,74,20,76],[23,47,23,49],[24,47,24,49],[24,24,24,33],[20,34,20,36],[20,24,20,33],[21,34,21,36],[22,24,22,33],[23,24,23,33],[22,34,22,36],[23,34,23,36],[24,34,24,36],[21,24,21,33],[24,50,24,59],[23,74,23,76],[24,74,24,76],[22,77,22,86],[23,77,23,86],[24,77,24,86],[23,87,23,89],[20,47,20,49],[20,50,20,59],[31,37,31,46],[32,37,32,46],[33,37,33,46],[21,37,21,46],[21,47,21,49],[22,50,22,59],[23,50,23,59],[26,47,26,49],[27,47,27,49],[26,37,26,46],[27,37,27,46],[25,47,25,49],[25,50,25,59],[42,37,43,46],[43,58,43,59],[45,61,46,65],[46,57,46,58],[46,59,46,60],[42,35,43,36],[20,77,20,86],[20,103,20,112],[37,103,37,112],[38,103,38,110],[33,87,33,89],[32,87,32,89],[31,87,31,89],[22,87,22,89],[22,74,22,76],[35,87,35,89],[34,87,34,89],[29,87,29,89],[28,87,28,89],[30,87,30,89],[20,100,20,102],[37,50,37,59],[37,37,38,46],[20,37,20,46],[50,94,50,96],[50,90,50,91],[50,92,50,93],[50,57,50,58],[50,67,50,69],[50,70,50,84],[50,85,50,89],[40,50,41,57],[40,47,41,48],[41,58,41,59],[49,70,49,84],[49,85,49,89],[48,67,48,69],[48,70,48,84],[48,85,48,89],[50,1,50,3],[50,4,50,18],[50,19,50,23],[50,31,50,32],[50,24,50,25],[50,26,50,27],[50,34,50,36],[50,37,50,51],[50,52,50,56],[50,64,50,65],[50,61,50,63],[45,28,46,32],[46,24,46,25],[49,1,49,3],[49,4,49,18],[49,19,49,23],[49,31,49,32],[48,97,48,98],[45,70,46,84],[45,85,46,89],[45,90,45,93],[45,94,46,98],[46,90,46,91],[49,97,49,98],[49,34,49,36],[49,37,49,51],[49,52,49,56],[49,64,49,65],[49,61,49,63],[49,94,49,96],[49,90,49,91],[49,92,49,93],[45,34,46,36],[45,37,46,51],[45,52,46,56],[42,103,43,110],[43,98,43,99],[49,100,50,110],[49,111,50,112],[46,100,47,110],[46,111,47,112],[45,100,45,109],[48,100,48,107],[47,97,47,98],[50,97,50,98],[47,1,47,3],[45,1,46,3],[45,4,46,18],[45,19,46,23],[45,24,45,27],[47,24,47,25],[47,26,47,27],[48,1,48,3],[48,4,48,18],[48,19,48,23],[47,4,47,18],[47,19,47,23],[6,56,6,57],[13,34,14,59],[6,42,6,50],[6,51,6,55],[6,33,6,35],[6,36,6,38],[6,39,6,41],[7,36,8,38],[37,47,38,48],[28,47,28,49],[30,37,30,46],[37,34,38,36],[36,24,36,33],[35,34,35,36],[32,34,32,36],[33,34,33,36],[34,34,34,36],[28,34,28,36],[29,34,29,36],[30,34,30,36],[31,34,31,36],[35,37,35,46],[36,37,36,46],[22,47,22,49],[7,96,8,97],[15,26,15,37],[15,48,15,59],[7,79,8,82],[9,64,10,84],[10,39,11,46],[7,33,8,35],[7,51,8,55],[10,48,11,49],[29,11,29,20],[37,11,38,20],[31,11,31,20],[32,11,32,20],[33,11,33,20],[31,21,31,23],[56,92,56,97],[56,106,56,111],[55,89,55,91],[56,89,56,91],[56,99,56,104],[54,89,54,91],[54,99,54,104],[55,92,55,97],[46,26,46,27],[55,106,55,111],[52,106,53,112],[54,92,54,97],[54,106,54,111],[52,92,53,98],[52,99,53,105],[43,111,43,112],[42,100,43,101],[37,74,38,76],[55,54,55,56],[55,57,55,58],[55,67,55,68],[55,70,56,84],[55,59,55,60],[55,61,55,62],[55,65,55,66],[55,63,55,64],[21,90,21,99],[21,50,21,59],[21,61,21,63],[21,64,21,73],[21,87,21,89],[37,77,38,86],[40,77,41,78],[40,84,41,86],[40,82,41,83],[42,90,43,97],[46,92,46,93],[45,67,46,69],[55,99,55,104],[45,57,45,60],[47,37,47,51],[49,67,49,69],[48,59,48,60],[49,59,49,60],[50,59,50,60],[47,28,47,30],[48,28,48,30],[49,28,49,30],[50,28,50,30],[48,24,48,25],[48,26,48,27],[49,24,49,25],[49,26,49,27],[48,57,48,58],[49,57,49,58],[48,34,48,36],[48,37,48,51],[48,52,48,56],[47,34,47,36],[48,31,48,32],[47,52,47,56],[47,57,47,58],[47,59,47,60],[47,31,47,32],[48,61,48,63],[47,61,47,63],[47,94,47,96],[48,94,48,96],[47,67,47,69],[47,70,47,84],[47,85,47,89],[48,92,48,93],[47,64,47,65],[48,64,48,65],[48,90,48,91],[47,90,47,91],[47,92,47,93]]}
[]
[]
[null,"組機様式第5号"]
[null,null,null,null,null,null,null,null,null,null,null,null,null,null,null,null,null,null,null,null,null,null,null,null,null,null,null,null,null,null,null,null," "," "," "," "," "," "," "," "," "," "," "]
[]
[null,"〒","",null,null,"－","",null,null,null,null,null,null,null,null,null,null,null,null,null,null,null,null,null,null,null,null,null,null,null,null,null,null,"労働保険番号"]
[null,null,null,null,null,null,null,null,null,null,null,null,null,null,null,null,null,null,null,null,null,null,null,null,null,null,null,null,null,null,null,null,null,"府県",null,null,"所 掌",null,null," 管 轄",null,null,"　基　幹　番　号",null,null,null,null,null,null,null,null," 枝 番 号",null,null,null,null,"料変",null,null,null,null,null,null,null,null,null,null,null,null,null,null,null,null,null,null,null,null,null,null,null,null,null,null,null,null,null,null,null,null,null,null,null,null,null,null,null,null,null,null,null,null,null,null,null,null,null,null,null,null,null,null,null,null,null,0]
[null,"住所",null,null,null,null,null,null,null,null,null,null,null,null,null,null,null,null,null,null,null,null,null,null,null,null,null,null,null,null,null,null,null,"22",null,null,3,null,null,"05",null,null,940010,null,null,null,null,null,null,null,null,null,null,null,null,null,null,null,null,null,null,null,null,null,null,"３．事業の概要",null,null,null,null,null,null,null,null,null,null,null,null,null,null,null,null,null,null,null,null,"４．特掲事項",null,null,null,null,null,null,null,null,null,null,null,null,null,null,"５．新年度賃金見込額"]
[null,null,null,null,null,null,null,null,null,null,null,null,null,null,null,null,null,null,null,null,null,null,null,null,null,null,null,null,null,null,null,null,null,null,null,null,null,null,null,null,null,null,null,null,null,null,null,null,null,null,null,null,null,null,null,null,null,null,null,null,null,null,null,null,null,null,null,null,null,null,null,null,null,null,null,null,null,null,null,null,null,null,null,null,null,null,null,null,"１．該当する",null,null,null,null,null,null,null,null,null,null,null,null,null,null,{"$f":"IF(DK15=1,\"①\",\"１\") &\"．\"","v":"１．"},null,"前年度と同額"]
[null,null,null,null,null,null,null,null,null,null,null,null,null,null,null,null,null,null,null,null,null,null,null,null,null,null,null,null,null,null,null,null,null,"雇用保険事業所番号",null,null,null,null,null,null,null,null,null,null,null,null,null,null,null,null,null,null,null,null,null,null,null,null,null,null,null,null,null,null,null,null,null,null,null,null,null,null,null,null,null,null,null,null,null,null,null,null,null,null,null,null,null,null,"２．該当しない",null,null,null,null,null,null,null,null,null,null,null,null,null,null,{"$f":"IF(DK15=2,\"②\",\"２\") &\"．\"","v":"２．"},null,"前年度と変る"]
[null,null,null,null,null,null,null,null,null,null,null,null,null,null,null,null,null,null,null,null,null,null,null,null,null,null,null,null,null,null,null,null,null,null,null,null,null,null,null,null,null,null,null,null,null,null,null,null,null,null,null,null,null,null,null,null,null,null,null,null,null,null,null,null,null,null,null,null,null,null,null,null,null,null,null,null,null,null,null,null,null,null,null,null,null,null,null,null,null,null,null,null,null,null,null,null,null,null,null,null,null,"労災",null,null,null,null,null,null,null,null,"千円"]
[null,"事業場名",null,null,null,null,null,null,null,null,null,null,null,null,null,null,null,null,null,null,null,null,null,null,null,null,null,null,null,null,null,null,null,null,null,null,null,null,null,null,null,null,null,null,null,null,null,null,null,null,null,null,null,null,null,null,null,null,null,null,null,null,null,null,null,"６．延納の申請",null,null,null,null,null,null,null,null,null,null,null,null,null,null,null,null,null,null,null,null,null,null,null,null,null,null,null,null,null,null,null,null,null,null,null,"雇用",null,null,null,null,null,null,null,null,"千円"]
[null,null,null,null,null,null,null,null,null,null,null,null,null,null,null,null,null,null,null,null,null,null,null,null,null,null,null,null,null,null,null,null,null,"事務組合名",null,null,null,null,null,null,null,null,null,null,null,null,null,null,null,null,null,null,null,null,null,null,null,null,null,null,null,null,null,null,null,null,null,{"$f":"IF(DK7=1,\"①\",\"１\") &\"．\"","v":"１．"},null,"一括納付",null,null,null,null,null,null,null,null,null,null,null,null,null,null,null,null,null,null,null,null,null,null,null,null,null,null,null,null,null,null,null,null,null,{"$f":"IF(DK15=3,\"③\",\"３\") &\"．\"","v":"３．"},null,"委託解除年月日"]
[null,"事業主名",null,null,null,null,null,null,null,null,null,null,null,null,null,null,null,null,null,null,null,null,null,null,null,null,null,null,null,"殿",null,null,null,null,"労働保険事務組合三島商工会議所",null,null,null,null,null,null,null,null,null,null,null,null,null,null,null,null,null,null,null,null,null,null,null,null,null,null,null,null,null,null,null,null,{"$f":"IF(DK7=2,\"②\",\"２\") &\"．\"","v":"２．"},null,"分納（３回）",null,null,null,null,null,null,null,null,null,null,null,null,null,null,null,null,null,null,null,null,null,null,null,null,null,null,null,null,null,null,null,null,null,null,null,"年",null,null,"月",null,null,"日"]
[null,null,null,null,null,null,null,null,null,null,null,null,null,null,null,null,null,null,null,null,null,null,null,null,null,null,null,null,null,null,null,null,null,null,null,null,null,null,null,null,null,null,null,null,null,null,null,null,null,null,null,null,null,null,null,null,null,null,null,null,null,null,null,null,null,null,null,null,null,null,null,null,null,null,null,null,null,null,null,null,null,null,null,null,null,null,null,null,null,null,null,null,null,null,null,null,null,null,null,null,null,null,null,{"$f":"IF(DK15=4,\"④\",\"４\") &\"．\"","v":"４．"},null,"委託解除拠出金納付済",null,null,null,null,null,null,null,null,0]
[null,null,null,null,null,null,null,null,null,null,null,null,null,null,null,null,null,null,null,null,"事","業","場","T","E","L",null,null,null,null,null,null,null,null,null,null,null,null,null,null,null,null,null,null,null,"T","E","L","055-975-4441"]
[null,"項目",null,null,null,null,null,null,"１．　労　災　保　険　及　び　一　般　拠　出　金　対　象　労　働　者　数　及　び　賃　金",null,null,null,null,null,null,null,null,null,null,null,null,null,null,null,null,null,null,null,null,null,null,null,null,null,null,null,null,null,null,null,null,null,null,null,null,null,null,null,null,null,null,null,null,null,null,null,null,null,null,null,null,null,null,null,null,null,null,null,null,"２．　雇　用　保　険　対　象　被　保　険　者　数　及　び　賃　金"]
[]
[]
[null,"月別"]
[null,null,null,null,null,null,null,null,"人 員",null,null,"　支　払　賃　金",null,null,null,null,null,null,null,null,null,"人 員",null,null,"　支　払　賃　金",null,null,null,null,null,null,null,null,null,"人 員",null,null,"　支　払　賃　金",null,null,null,null,null,null,null,null,null,"人 員",null,null,"　支　払　賃　金",null,null,null,null,null,null,null,null,null,null,"人 員",null,null,"　支　払　賃　金",null,null,null,null,null,null,null,null,null,"人 員",null,null,"　支　払　賃　金",null,null,null,null,null,null,null,null,null,"人 員",null,null,"　支　払　賃　金",null,null,null,null,null,null,null,null,null,"人 員",null,null,"　支　払　賃　金"]
[null,null,null,null,null,null,null,null,"人",null,null,"円",null,null,null,null,null,null,null,null,null,"人",null,null,"円",null,null,null,null,null,null,null,null,null,"人",null,null,"円",null,null,null,null,null,null,null,null,null,"人",null,null,"円",null,null,null,null,null,null,null,null,null,null,"人",null,null,"円",null,null,null,null,null,null,null,null,null,"人",null,null,"円",null,null,null,null,null,null,null,null,null,"人",null,null,"円"]
[null,null,4,4,4,null,"月",null,null,null,null,null,null,null,null,null,null,null,null,null,null,null,null,null,null,null,null,null,null,null,null,null,null,null,null,null,null,null,null,null,null,null,null,null,null,null,null,{"$f":" IF(AND(ISBLANK(I23), ISBLANK(V23),ISBLANK(AI23)),\"\",(I23+V23+AI23))","v":""},null,null,{"$f":"L23+Y23+AL23","v":0},null,null,null,null,null,null,null,null,null,null,null,null,null,null,null,null,null,null,null,null,null,null,null,null,null,null,null,null,null,null,null,null,null,null,null,null,{"$f":" IF(AND(ISBLANK(BJ23), ISBLANK(BW23)),\"\",(BJ23+BW23))","v":""},null,null,{"$f":"BM23+BZ23","v":0}]
[null,null,5,5,5,null,"月",null,null,null,null,null,null,null,null,null,null,null,null,null,null,null,null,null,null,null,null,null,null,null,null,null,null,null,null,null,null,null,null,null,null,null,null,null,null,null,null,"",null,null,0,null,null,null,null,null,null,null,null,null,null,null,null,null,null,null,null,null,null,null,null,null,null,null,null,null,null,null,null,null,null,null,null,null,null,null,null,"",null,null,0]
[null,null,6,6,6,null,"月",null,null,null,null,null,null,null,null,null,null,null,null,null,null,null,null,null,null,null,null,null,null,null,null,null,null,null,null,null,null,null,null,null,null,null,null,null,null,null,null,"",null,null,0,null,null,null,null,null,null,null,null,null,null,null,null,null,null,null,null,null,null,null,null,null,null,null,null,null,null,null,null,null,null,null,null,null,null,null,null,"",null,null,0]
[null,null,7,7,7,null,"月",null,null,null,null,null,null,null,null,null,null,null,null,null,null,null,null,null,null,null,null,null,null,null,null,null,null,null,null,null,null,null,null,null,null,null,null,null,null,null,null,"",null,null,0,null,null,null,null,null,null,null,null,null,null,null,null,null,null,null,null,null,null,null,null,null,null,null,null,null,null,null,null,null,null,null,null,null,null,null,null,"",null,null,0]
[null,null,8,8,8,null,"月",null,null,null,null,null,null,null,null,null,null,null,null,null,null,null,null,null,null,null,null,null,null,null,null,null,null,null,null,null,null,null,null,null,null,null,null,null,null,null,null,"",null,null,0,null,null,null,null,null,null,null,null,null,null,null,null,null,null,null,null,null,null,null,null,null,null,null,null,null,null,null,null,null,null,null,null,null,null,null,null,"",null,null,0]
[null,null,9,9,9,null,"月",null,null,null,null,null,null,null,null,null,null,null,null,null,null,null,null,null,null,null,null,null,null,null,null,null,null,null,null,null,null,null,null,null,null,null,null,null,null,null,null,"",null,null,0,null,null,null,null,null,null,null,null,null,null,null,null,null,null,null,null,null,null,null,null,null,null,null,null,null,null,null,null,null,null,null,null,null,null,null,null,"",null,null,0]
[null,null,10,10,10,null,"月",null,null,null,null,null,null,null,null,null,null,null,null,null,null,null,null,null,null,null,null,null,null,null,null,null,null,null,null,null,null,null,null,null,null,null,null,null,null,null,null,"",null,null,0,null,null,null,null,null,null,null,null,null,null,null,null,null,null,null,null,null,null,null,null,null,null,null,null,null,null,null,null,null,null,null,null,null,null,null,null,"",null,null,0]
[null,null,11,11,11,null,"月",null,null,null,null,null,null,null,null,null,null,null,null,null,null,null,null,null,null,null,null,null,null,null,null,null,null,null,null,null,null,null,null,null,null,null,null,null,null,null,null,"",null,null,0,null,null,null,null,null,null,null,null,null,null,null,null,null,null,null,null,null,null,null,null,null,null,null,null,null,null,null,null,null,null,null,null,null,null,null,null,"",null,null,0]
[null,null,12,12,12,null,"月",null,null,null,null,null,null,null,null,null,null,null,null,null,null,null,null,null,null,null,null,null,null,null,null,null,null,null,null,null,null,null,null,null,null,null,null,null,null,null,null,"",null,null,0,null,null,null,null,null,null,null,null,null,null,null,null,null,null,null,null,null,null,null,null,null,null,null,null,null,null,null,null,null,null,null,null,null,null,null,null,"",null,null,0]
[null,null,1,1,1,null,"月",null,null,null,null,null,null,null,null,null,null,null,null,null,null,null,null,null,null,null,null,null,null,null,null,null,null,null,null,null,null,null,null,null,null,null,null,null,null,null,null,"",null,null,0,null,null,null,null,null,null,null,null,null,null,null,null,null,null,null,null,null,null,null,null,null,null,null,null,null,null,null,null,null,null,null,null,null,null,null,null,"",null,null,0]
[null,null,2,2,2,null,"月",null,null,null,null,null,null,null,null,null,null,null,null,null,null,null,null,null,null,null,null,null,null,null,null,null,null,null,null,null,null,null,null,null,null,null,null,null,null,null,null,"",null,null,0,null,null,null,null,null,null,null,null,null,null,null,null,null,null,null,null,null,null,null,null,null,null,null,null,null,null,null,null,null,null,null,null,null,null,null,null,"",null,null,0]
[null,null,3,3,3,null,"月",null,null,null,null,null,null,null,null,null,null,null,null,null,null,null,null,null,null,null,null,null,null,null,null,null,null,null,null,null,null,null,null,null,null,null,null,null,null,null,null,"",null,null,0,null,null,null,null,null,null,null,null,null,null,null,null,null,null,null,null,null,null,null,null,null,null,null,null,null,null,null,null,null,null,null,null,null,null,null,null,"",null,null,0]
[null,"賞与等",null,null,null,null,"月",null,null,null,null,null,null,null,null,null,null,null,null,null,null,null,null,null,null,null,null,null,null,null,null,null,null,null,null,null,null,null,null,null,null,null,null,null,null,null,null,"",null,null,0,null,null,null,null,null,null,null,null,null,null,null,null,null,null,null,null,null,null,null,null,null,null,null,null,null,null,null,null,null,null,null,null,null,null,null,null,"",null,null,0]
[null,"賞与等",null,null,null,null,"月",null,null,null,null,null,null,null,null,null,null,null,null,null,null,null,null,null,null,null,null,null,null,null,null,null,null,null,null,null,null,null,null,null,null,null,null,null,null,null,null,"",null,null,0,null,null,null,null,null,null,null,null,null,null,null,null,null,null,null,null,null,null,null,null,null,null,null,null,null,null,null,null,null,null,null,null,null,null,null,null,"",null,null,0]
[null,"賞与等",null,null,null,null,"月",null,null,null,null,null,null,null,null,null,null,null,null,null,null,null,null,null,null,null,null,null,null,null,null,null,null,null,null,null,null,null,null,null,null,null,null,null,null,null,null,"",null,null,0,null,null,null,null,null,null,null,null,null,null,null,null,null,null,null,null,null,null,null,null,null,null,null,null,null,null,null,null,null,null,null,null,null,null,null,null,"",null,null,0]
[null,"合　計",null,null,null,null,null,null,null,null,null,{"$f":"SUM(L23:U37)","v":0},null,null,null,null,null,null,null,null,null,null,null,null,{"$f":"SUM(Y23:AH37)","v":0},null,null,null,null,null,null,null,null,null,null,null,null,{"$f":"SUM(AL23:AU37)","v":0},null,null,null,null,null,null,null,null,null,{"$f":"IF(ISERROR(ROUNDDOWN(AVERAGE(AV23:AX34),0)),\"\",ROUNDDOWN(AVERAGE(AV23:AX34),0))","v":""},null,null,{"$f":"SUM(AY23:BH37)","v":0},null,null,null,null,null,null,null,null,null,null,null,null,null,{"$f":"SUM(BM23:BV37)","v":0},null,null,null,null,null,null,null,null,null,null,null,null,{"$f":"SUM(BZ23:CI37)","v":0},null,null,null,null,null,null,null,null,null,{"$f":"IF(ISERROR(ROUNDDOWN(AVERAGE(CJ23:CJ34),0)),\"\",ROUNDDOWN(AVERAGE(CJ23:CJ34),0))","v":""},null,null,{"$f":"SUM(CM23:CV37)","v":0},null,null,null,null,null,null,null,null,null,{"$f":"IF(ISERROR(ROUNDDOWN(AVERAGE(CW23:CW34),0)),\"\",ROUNDDOWN(AVERAGE(CW23:CW34),0))","v":""},null,null,{"$f":"SUM(CZ23:DI37)","v":0}]
[null,null,null,null,null,null,null,null,null,null,null,null,null,null,null,null,null,null,null,null,null,null,null,null,null,null,null,null,null,null,null,null,null,null,null,null,null,null,null,null,null,null,null,null,null,null,null,null,null,"人",{"$f":"ROUNDDOWN(AY38/1000,0)","v":0},null,null,null,null,null,null,null,"千円",null,null,null,null,null,null,null,null,null,null,null,null,null,null,null,null,null,null,null,null,null,null,null,null,null,null,null,null,null,null,"人",{"$f":"ROUNDDOWN(CM38/1000,0)","v":0},null,null,null,null,null,null,null,"千円",null,null,null,"人",{"$f":"ROUNDDOWN(CZ38/1000,0)","v":0},null,null,null,null,null,null,null,"千円"]
[]
[null,null,null,null,null,null,null,null,null,null,null,null,null,null,null,null,null,null,null,null,null,null,null,null,null,null,null,null,null,"業種変更年月",null,null,null,null,null,null,null,"業種変更前\n（業種変更が無い時）",null,null,null,null,null,null,null,null,null,null,null,null,0,null,null,null,null,null,null,null,"千円",null,null,null,null,null,null,null,null,null,null,null,null,null,null,null,null,null,null,null,null,"月　～",null,null,null,null,"月迄",null,null,null,null,null,0,null,null,null,null,null,null,null,"千円",null,null,null,null,0,null,null,null,null,null,null,null,"千円"]
[null,null,null,null,null,null,null,null,null,null,null,null,null,null,null,null,null,null,null,null,null,null,null,null,null,null,null,null,null,null,null,null,null,null,null,null,null,null,null,null,null,null,null,null,null,null,null,null,null,"人",null,null,null,null,null,null,null,null,null,null,null,null,null,null,null,null,null,null,null,null,null,null,null,null,null,null,null,null,null,null,null,null,null,null,null,null,null,null,null,"人",null,null,null,null,null,null,null,null,null,null,null,null,"人"]
[null,null,null,null,null,null,null,null,null,null,null,null,null,null,null,null,null,null,null,null,null,null,null,null,null,null,null,null,null,null,null,"年",null,null,null,"月",null,"業種変更後",null,null,null,null,null,null,null,null,null,null,null,null,0,null,null,null,null,null,null,null,"千円",null,null,null,null,null,null,null,null,null,null,null,null,null,null,null,null,null,null,null,null,null,null,null,null,null,null,null,null,null,null,null,0,null,null,null,null,null,null,null,"千円",null,null,null,null,0,null,null,null,null,null,null,null,"千円"]
[]
[]
[null,"NO",null,null,"特別加入者の氏名",null,null,null,null,null,null,null,null,null,null,null,null,null,null,"承認された\n基礎日額",null,null,null,null,"適用月数",null,null,null,"希望する\n基礎日額",null,null,null,null,null,"NO",null,null,"特別加入者の氏名",null,null,null,null,null,null,null,null,null,null,null,null,null,null,"承認された\n基礎日額",null,null,null,null,"適用月数",null,null,null,"希望する\n基礎日額",null,null,null,null,null,"NO",null,null,"特別加入者の氏名",null,null,null,null,null,null,null,null,null,null,null,null,null,null,"承認された\n基礎日額",null,null,null,null,"適用月数",null,null,null,"希望する\n基礎日額",null,null,null,null,null,"申告済概算保険料"]
[null,null,null,null,null,null,null,null,null,null,null,null,null,null,null,null,null,null,null,null,null,null,null,null,"確定",null,"概算",null,null,null,null,null,null,null,null,null,null,null,null,null,null,null,null,null,null,null,null,null,null,null,null,null,null,null,null,null,null,"確定",null,"概算",null,null,null,null,null,null,null,null,null,null,null,null,null,null,null,null,null,null,null,null,null,null,null,null,null,null,null,null,null,null,"確定",null,"概算",null,null,null,null,null,null,null,null,null,null,null,null,null,null,null,null,null,null,"円"]
[null,"",null,null,null,null,null,null,null,null,null,null,null,null,null,null,null,null,null,null,null,null,null,null,null,null,null,null,null,null,null,"00",null,null,"",null,null,null,null,null,null,null,null,null,null,null,null,null,null,null,null,null,null,null,null,null,null,null,null,null,null,null,null,null,"00",null,null,"",null,null,null,null,null,null,null,null,null,null,null,null,null,null,null,null,null,null,null,null,null,null,null,null,null,null,null,null,null,"00"]
[null,"",null,null,null,null,null,null,null,null,null,null,null,null,null,null,null,null,null,null,null,null,null,null,null,null,null,null,null,null,null,"00",null,null,"",null,null,null,null,null,null,null,null,null,null,null,null,null,null,null,null,null,null,null,null,null,null,null,null,null,null,null,null,null,"00",null,null,"",null,null,null,null,null,null,null,null,null,null,null,null,null,null,null,null,null,null,null,null,null,null,null,null,null,null,null,null,null,"00",null,null,"作成者"]
[null,"",null,null,null,null,null,null,null,null,null,null,null,null,null,null,null,null,null,null,null,null,null,null,null,null,null,null,null,null,null,"00",null,null,"",null,null,null,null,null,null,null,null,null,null,null,null,null,null,null,null,null,null,null,null,null,null,null,null,null,null,null,null,null,"00",null,null,"",null,null,null,null,null,null,null,null,null,null,null,null,null,null,null,null,null,null,null,null,null,null,null,null,null,null,null,null,null,"00",null,null,null,null,null,null,null,null,null,null,null,null,null,"印"]
[null,"",null,null,null,null,null,null,null,null,null,null,null,null,null,null,null,null,null,null,null,null,null,null,null,null,null,null,null,null,null,"00",null,null,"",null,null,null,null,null,null,null,null,null,null,null,null,null,null,null,null,null,null,null,null,null,null,null,null,null,null,null,null,null,"00",null,null,"",null,null,null,null,null,null,null,null,null,null,null,null,null,null,null,null,null,null,null,null,null,null,null,null,null,null,null,null,null,"00"]
[]
[null,null,null,null,null,null,null,null,null,null,null,null,null,null,null,null,null,null,null,null,null,null,null,null,null,null,null,null,null,null,null,null,null,null,null,null,null,null,null,null,null,null,null,null,null,null,null,null,null,null,null,null,null,null,null,null,null,null,null,null,null,null,null,null,null,null,null,null,null,null,null,null,null,null,null,null,null,null,null,null,null,null,null,null,null,null,null,"予備欄"]
[null,null,null,null,null,null,null,null,null,null,null,null,null,null,null,null,null,null,null,null,null,null,null,null,null,null,null,null,null,null,null,null,null,null,null,null,null,null,null,null,null,null,null,null,null,null,null,null,null,null,null,null,null,null,"上記のとおり報告します。"]
[null,null,null,null,null,null,null,null,null,null,null,null,null,null,null,null,null,null,null,null,null,null,null,null,null,null,null,null,null,null,null,null,null,null,null,null,null,null,null,null,null,null,null,null,null,null,null,null,null,null,null,null,null,null,null,null,null,null,null,null,null,null,null,null,null,null,null,null,null,null,"事業主氏名",null,null,null,null,null,null,null,null,null,null,null,null,null,null,null,null,null,null,"1 期",null,null,null,null,null,null,null,null,"円",null,null,null,null,null,null,"円",null,null,null,null,null,null,"円"]
[null,null,null,null,null,null,null,null,null,null,null,null,null,null,null,null,null,null,null,null,null,null,null,null,null,null,null,null,null,null,null,null,null,null,null,null,null,null,null,null,null,null,null,null,null,null,null,null,null,null,null,null,null,null,"令和",null,null,null,null,"年",null,"",null,"月",null,"",null,"日",null,null,null,null,null,null,null,null,null,null,null,null,null,null,null,null,null,null,null,null,null,"２ 期",null,null,null,null,null,null,null,null,"円",null,null,null,null,null,null,"円",null,null,null,null,null,null,"円"]
[null,null,null,null,null,null,null,null,null,null,null,null,null,null,null,null,null,null,null,null,null,null,null,null,null,null,null,null,null,null,null,null,null,null,null,null,null,null,null,null,null,null,null,null,null,null,null,null,null,null,null,null,null,null,null,null,null,null,null,null,null,null,null,null,null,null,null,null,null,null,null,null,null,null,null,null,null,null,null,null,null,null,null,null,null,"印",null,null,null,"３ 期",null,null,null,null,null,null,null,null,"円",null,null,null,null,null,null,"円",null,null,null,null,null,null,"円"]

{"sheet":"報告書入力例","index":1,"n_rows":57,"n_cols":115,"rows_kept":57,"cut":false,"hidden":false,"merged":[[14,105,14,112],[10,101,10,102],[11,101,11,102],[10,103,10,109],[11,103,11,109],[13,103,13,104],[13,106,13,107],[13,109,13,110],[10,110,10,111],[11,110,11,111],[5,2,5,4],[5,6,5,9],[7,56,8,57],[17,74,19,86],[17,8,19,20],[17,21,19,33],[17,34,19,46],[17,61,19,73],[17,47,19,59],[10,33,11,37],[7,42,8,50],[7,39,8,41],[7,1,8,4],[9,5,10,31],[7,5,8,31],[13,1,14,4],[13,5,14,28],[11,1,12,4],[11,5,12,31],[13,29,14,31],[16,1,18,7],[16,8,16,59],[19,1,21,7],[21,8,21,10],[32,103,32,112],[33,103,33,112],[34,103,34,112],[17,87,19,99],[30,100,30,102],[29,100,29,102],[28,100,28,102],[27,100,27,102],[27,90,27,99],[28,90,28,99],[29,90,29,99],[22,100,22,102],[25,90,25,99],[20,87,20,89],[22,90,22,99],[24,90,24,99],[23,90,23,99],[24,87,24,89],[26,90,26,99],[30,90,30,99],[41,111,41,112],[36,90,36,99],[36,100,36,102],[33,100,33,102],[35,103,35,112],[36,103,36,112],[34,100,34,102],[40,90,41,97],[40,103,41,110],[41,98,41,99],[35,90,35,99],[35,100,35,102],[33,90,33,99],[34,90,34,99],[22,77,22,86],[23,77,23,86],[24,77,24,86],[25,77,25,86],[23,87,23,89],[27,87,27,89],[26,87,26,89],[25,87,25,89],[40,100,41,101],[37,90,37,99],[38,90,38,97],[37,100,38,101],[37,87,38,88],[40,87,41,88],[32,90,32,99],[31,90,31,99],[23,74,23,76],[24,74,24,76],[25,74,25,76],[26,74,26,76],[27,74,27,76],[28,74,28,76],[35,74,35,76],[26,77,26,86],[27,77,27,86],[28,77,28,86],[29,77,29,86],[30,77,30,86],[29,74,29,76],[30,74,30,76],[32,77,32,86],[33,77,33,86],[33,74,33,76],[31,74,31,76],[32,74,32,76],[31,77,31,86],[36,74,36,76],[34,77,34,86],[35,77,35,86],[36,77,36,86],[34,74,34,76],[35,64,35,73],[36,64,36,73],[42,87,43,88],[42,77,43,86],[36,87,36,89],[40,79,41,81],[37,61,38,63],[37,64,38,73],[36,61,36,63],[35,61,35,63],[22,64,22,73],[23,64,23,73],[24,64,24,73],[25,64,25,73],[26,64,26,73],[27,64,27,73],[28,64,28,73],[29,64,29,73],[30,64,30,73],[32,61,32,63],[33,61,33,63],[34,61,34,63],[31,64,31,73],[32,64,32,73],[33,64,33,73],[34,64,34,73],[31,61,31,63],[22,61,22,63],[23,61,23,63],[24,61,24,63],[25,61,25,63],[26,61,26,63],[27,61,27,63],[28,61,28,63],[30,50,30,59],[29,61,29,63],[30,61,30,63],[29,47,29,49],[30,47,30,49],[26,50,26,59],[27,50,27,59],[28,50,28,59],[29,50,29,59],[24,50,24,59],[36,47,36,49],[28,37,28,46],[29,37,29,46],[31,47,31,49],[32,47,32,49],[33,47,33,49],[34,47,34,49],[35,47,35,49],[31,50,31,59],[32,50,32,59],[33,50,33,59],[34,50,34,59],[35,50,35,59],[26,47,26,49],[27,47,27,49],[26,37,26,46],[27,37,27,46],[25,47,25,49],[25,50,25,59],[34,37,34,46],[30,21,30,23],[32,21,32,23],[33,21,33,23],[34,21,34,23],[35,21,35,23],[25,21,25,23],[26,21,26,23],[27,21,27,23],[33,24,33,33],[34,24,34,33],[35,24,35,33],[29,24,29,33],[30,24,30,33],[31,24,31,33],[32,24,32,33],[34,1,34,3],[35,1,35,3],[34,11,34,20],[35,11,35,20],[35,4,35,5],[35,6,35,7],[32,8,32,10],[33,8,33,10],[34,8,34,10],[42,33,43,34],[37,24,38,33],[36,50,36,59],[17,100,19,112],[40,37,41,46],[22,37,22,46],[23,37,23,46],[24,37,24,46],[20,61,20,63],[25,37,25,46],[26,34,26,36],[27,34,27,36],[25,34,25,36],[38,50,38,57],[36,34,36,36],[42,47,43,49],[42,50,43,57],[40,29,41,36],[42,29,43,30],[42,31,43,32],[25,24,25,33],[26,24,26,33],[27,24,27,33],[28,24,28,33],[37,21,38,23],[36,6,36,7],[36,11,36,20],[36,21,36,23],[37,1,38,7],[36,1,36,3],[36,4,36,5],[36,8,36,10],[25,4,25,5],[33,6,33,7],[34,4,34,5],[34,6,34,7],[37,8,38,10],[35,8,35,10],[26,4,26,5],[27,4,27,5],[28,4,28,5],[33,4,33,5],[28,8,28,10],[29,8,29,10],[28,6,28,7],[29,6,29,7],[28,11,28,20],[25,6,25,7],[29,4,29,5],[31,4,31,5],[32,4,32,5],[30,4,30,5],[30,6,30,7],[22,8,22,10],[23,8,23,10],[30,8,30,10],[24,8,24,10],[26,8,26,10],[22,4,22,5],[23,4,23,5],[24,4,24,5],[24,6,24,7],[31,6,31,7],[32,6,32,7],[20,8,20,10],[20,21,20,23],[31,8,31,10],[27,8,27,10],[22,6,22,7],[23,6,23,7],[25,8,25,10],[24,21,24,23],[22,11,22,20],[23,11,23,20],[22,21,22,23],[23,21,23,23],[21,11,21,20],[21,21,21,23],[24,11,24,20],[20,11,20,20],[30,11,30,20],[25,11,25,20],[26,11,26,20],[27,11,27,20],[28,21,28,23],[29,21,29,23],[26,6,26,7],[27,6,27,7],[23,47,23,49],[24,47,24,49],[24,24,24,33],[20,34,20,36],[20,24,20,33],[21,34,21,36],[22,24,22,33],[23,24,23,33],[22,34,22,36],[23,34,23,36],[24,34,24,36],[21,24,21,33],[22,74,22,76],[35,87,35,89],[34,87,34,89],[29,87,29,89],[28,87,28,89],[30,87,30,89],[20,100,20,102],[37,50,37,59],[37,37,38,46],[20,37,20,46],[20,47,20,49],[20,50,20,59],[31,37,31,46],[32,37,32,46],[33,37,33,46],[21,37,21,46],[21,47,21,49],[22,50,22,59],[23,50,23,59],[20,90,20,99],[20,64,20,73],[21,77,21,86],[21,74,21,76],[20,74,20,76],[20,77,20,86],[20,103,20,112],[37,103,37,112],[38,103,38,110],[22,103,22,112],[23,100,23,102],[23,103,23,112],[24,103,24,112],[24,100,24,102],[32,100,32,102],[31,100,31,102],[25,103,25,112],[26,100,26,102],[25,100,25,102],[26,103,26,112],[31,103,31,112],[27,103,27,112],[28,103,28,112],[29,103,29,112],[30,103,30,112],[33,87,33,89],[32,87,32,89],[31,87,31,89],[22,87,22,89],[40,50,41,57],[40,47,41,48],[41,58,41,59],[42,37,43,46],[43,58,43,59],[45,61,46,65],[46,57,46,58],[46,59,46,60],[42,35,43,36],[50,1,50,3],[50,4,50,18],[50,19,50,23],[50,31,50,32],[50,24,50,25],[50,26,50,27],[50,97,50,98],[50,34,50,36],[50,37,50,51],[50,52,50,56],[50,64,50,65],[50,61,50,63],[50,94,50,96],[50,90,50,91],[50,92,50,93],[50,57,50,58],[50,67,50,69],[50,70,50,84],[50,85,50,89],[45,85,46,89],[45,90,45,93],[45,94,46,98],[46,90,46,91],[49,97,49,98],[49,34,49,36],[49,37,49,51],[49,52,49,56],[49,64,49,65],[49,61,49,63],[49,94,49,96],[49,90,49,91],[49,92,49,93],[45,34,46,36],[45,37,46,51],[45,52,46,56],[45,57,45,60],[47,37,47,51],[49,67,49,69],[49,70,49,84],[49,85,49,89],[48,67,48,69],[48,70,48,84],[48,85,48,89],[45,67,46,69],[55,99,55,104],[55,1,55,13],[55,14,55,26],[55,27,55,39],[52,1,52,52],[53,1,53,13],[53,14,53,26],[53,27,53,39],[54,1,54,13],[54,14,54,26],[54,27,54,39],[47,4,47,18],[47,19,47,23],[47,31,47,32],[53,40,53,52],[45,28,46,32],[46,24,46,25],[49,1,49,3],[49,4,49,18],[49,19,49,23],[49,31,49,32],[48,97,48,98],[45,70,46,84],[55,106,55,111],[52,106,53,112],[54,92,54,97],[54,106,54,111],[52,92,53,98],[52,99,53,105],[43,111,43,112],[42,100,43,101],[37,74,38,76],[37,77,38,86],[40,77,41,78],[40,84,41,86],[40,82,41,83],[42,90,43,97],[42,103,43,110],[43,98,43,99],[49,100,50,110],[49,111,50,112],[46,100,47,110],[46,111,47,112],[45,100,45,109],[48,100,48,107],[47,97,47,98],[46,92,46,93],[46,26,46,27],[47,1,47,3],[45,1,46,3],[45,4,46,18],[45,19,46,23],[45,24,45,27],[47,24,47,25],[47,26,47,27],[48,1,48,3],[48,4,48,18],[48,19,48,23],[6,56,6,57],[13,34,14,59],[6,42,6,50],[6,51,6,55],[6,33,6,35],[6,36,6,38],[6,39,6,41],[7,36,8,38],[37,47,38,48],[28,47,28,49],[30,37,30,46],[37,34,38,36],[36,24,36,33],[35,34,35,36],[32,34,32,36],[33,34,33,36],[34,34,34,36],[28,34,28,36],[29,34,29,36],[30,34,30,36],[31,34,31,36],[35,37,35,46],[36,37,36,46],[22,47,22,49],[7,96,8,97],[15,26,15,37],[15,48,15,59],[7,79,8,82],[9,64,10,84],[10,39,11,46],[7,33,8,35],[7,51,8,55],[10,48,11,49],[56,1,56,13],[56,14,56,26],[56,27,56,39],[21,103,21,112],[21,100,21,102],[21,90,21,99],[21,50,21,59],[21,61,21,63],[21,64,21,73],[21,87,21,89],[29,11,29,20],[37,11,38,20],[31,11,31,20],[32,11,32,20],[33,11,33,20],[31,21,31,23],[56,92,56,97],[56,106,56,111],[55,89,55,91],[56,89,56,91],[56,99,56,104],[54,89,54,91],[54,99,54,104],[55,92,55,97],[55,54,55,56],[55,57,55,58],[55,40,55,52],[54,40,54,52],[55,67,55,68],[55,70,56,84],[55,59,55,60],[55,61,55,62],[55,65,55,66],[55,63,55,64],[56,40,56,52],[48,59,48,60],[49,59,49,60],[50,59,50,60],[47,28,47,30],[48,28,48,30],[49,28,49,30],[50,28,50,30],[48,24,48,25],[48,26,48,27],[49,24,49,25],[49,26,49,27],[48,57,48,58],[49,57,49,58],[48,34,48,36],[48,37,48,51],[48,52,48,56],[47,34,47,36],[48,31,48,32],[47,52,47,56],[47,57,47,58],[47,59,47,60],[48,61,48,63],[47,61,47,63],[47,94,47,96],[48,94,48,96],[47,67,47,69],[47,70,47,84],[47,85,47,89],[48,92,48,93],[47,64,47,65],[48,64,48,65],[48,90,48,91],[47,90,47,91],[47,92,47,93]]}
[]
[]
[null,"組機様式第5号"]
[null,null,null,null,null,null,null,null,null,null,null,null,null,null,null,null,null,null,null,null,null,null,null,null,null,null,null,null,null,null,null,null," "," "," "," "," "," "," "," "," "," "," "]
[]
[null,"〒","102",null,null,"－","0072",null,null,null,null,null,null,null,null,null,null,null,null,null,null,null,null,null,null,null,null,null,null,null,null,null,null,"労働保険番号"]
[null,null,null,null,null,null,null,null,null,null,null,null,null,null,null,null,null,null,null,null,null,null,null,null,null,null,null,null,null,null,null,null,null,"府県",null,null,"所 掌",null,null," 管 轄",null,null,"　基　幹　番　号",null,null,null,null,null,null,null,null," 枝 番 号",null,null,null,null,"料変",null,null,null,null,null,null,null,null,null,null,null,null,null,null,null,null,null,null,null,null,null,null,null,null,null,null,null,null,null,null,null,null,null,null,null,null,null,null,null,null,null,null,null,null,null,null,null,null,null,null,null,null,null,null,null,null,null,1]
[null,"住所",null,null,null,"東京都千代田区飯田橋",null,null,null,null,null,null,null,null,null,null,null,null,null,null,null,null,null,null,null,null,null,null,null,null,null,null,null,"13",null,null,3,null,null,"01",null,null,90123,null,null,null,null,null,null,null,null,"055",null,null,null,null,null,null,null,null,null,null,null,null,null,"３．事業の概要",null,null,null,null,null,null,null,null,null,null,null,null,null,9801,null,null,null,null,null,null,"４．特掲事項",null,null,null,null,null,null,null,null,null,2,null,null,null,null,"５．新年度賃金見込額"]
[null,null,null,null,null,null,null,null,null,null,null,null,null,null,null,null,null,null,null,null,null,null,null,null,null,null,null,null,null,null,null,null,null,null,null,null,null,null,null,null,null,null,null,null,null,null,null,null,null,null,null,null,null,null,null,null,null,null,null,null,null,null,null,null,null,null,null,null,null,null,null,null,null,null,null,null,null,null,null,null,null,null,null,null,null,null,null,null,"１．該当する",null,null,null,null,null,null,null,null,null,null,null,null,null,null,{"$f":"IF(DK15=1,\"①\",\"１\") &\"．\"","v":"①．"},null,"前年度と同額"]
[null,null,null,null,null,"２-4-１",null,null,null,null,null,null,null,null,null,null,null,null,null,null,null,null,null,null,null,null,null,null,null,null,null,null,null,"雇用保険事業所番号",null,null,null,null,null,null,null,null,null,null,null,null,null,null,null,null,null,null,null,null,null,null,null,null,null,null,null,null,null,null,null,null,null,null,null,null,null,null,null,null,null,null,null,null,null,null,null,null,null,null,null,null,null,null,"２．該当しない",null,null,null,null,null,null,null,null,null,null,null,null,null,null,{"$f":"IF(DK15=2,\"②\",\"２\") &\"．\"","v":"２．"},null,"前年度と変る"]
[null,null,null,null,null,null,null,null,null,null,null,null,null,null,null,null,null,null,null,null,null,null,null,null,null,null,null,null,null,null,null,null,null,"1234",null,null,null,null,null,"4566789",null,null,null,null,null,null,null,null,"1",null,null,null,null,null,null,null,null,null,null,null,null,null,null,null,null,null,null,null,null,null,null,null,null,null,null,null,null,null,null,null,null,null,null,null,null,null,null,null,null,null,null,null,null,null,null,null,null,null,null,null,null,"労災",null,null,null,null,null,null,null,null,"千円"]
[null,"事業場名",null,null,null,"株式会社　ヤマシタ",null,null,null,null,null,null,null,null,null,null,null,null,null,null,null,null,null,null,null,null,null,null,null,null,null,null,null,null,null,null,null,null,null,null,null,null,null,null,null,null,null,null,null,null,null,null,null,null,null,null,null,null,null,null,null,null,null,null,null,"６．延納の申請",null,null,null,null,null,null,null,null,null,null,null,null,null,null,null,null,null,null,null,null,null,null,null,null,null,null,null,null,null,null,null,null,null,null,null,"雇用",null,null,null,null,null,null,null,null,"千円"]
[null,null,null,null,null,null,null,null,null,null,null,null,null,null,null,null,null,null,null,null,null,null,null,null,null,null,null,null,null,null,null,null,null,"事務組合名",null,null,null,null,null,null,null,null,null,null,null,null,null,null,null,null,null,null,null,null,null,null,null,null,null,null,null,null,null,null,null,null,null,{"$f":"IF(DK7=1,\"①\",\"１\") &\"．\"","v":"①．"},null,"一括納付",null,null,null,null,null,null,null,null,null,null,null,null,null,null,null,null,null,null,null,null,null,null,null,null,null,null,null,null,null,null,null,null,null,{"$f":"IF(DK15=3,\"③\",\"３\") &\"．\"","v":"３．"},null,"委託解除年月日"]
[null,"事業主名",null,null,null,"山下　和昭",null,null,null,null,null,null,null,null,null,null,null,null,null,null,null,null,null,null,null,null,null,null,null,"殿",null,null,null,null,"市ヶ谷労働保険事務組合",null,null,null,null,null,null,null,null,null,null,null,null,null,null,null,null,null,null,null,null,null,null,null,null,null,null,null,null,null,null,null,null,{"$f":"IF(DK7=2,\"②\",\"２\") &\"．\"","v":"２．"},null,"分納（３回）",null,null,null,null,null,null,null,null,null,null,null,null,null,null,null,null,null,null,null,null,null,null,null,null,null,null,null,null,null,null,null,null,null,null,null,"年",null,null,"月",null,null,"日"]
[null,null,null,null,null,null,null,null,null,null,null,null,null,null,null,null,null,null,null,null,null,null,null,null,null,null,null,null,null,null,null,null,null,null,null,null,null,null,null,null,null,null,null,null,null,null,null,null,null,null,null,null,null,null,null,null,null,null,null,null,null,null,null,null,null,null,null,null,null,null,null,null,null,null,null,null,null,null,null,null,null,null,null,null,null,null,null,null,null,null,null,null,null,null,null,null,null,null,null,null,null,null,null,{"$f":"IF(DK15=4,\"④\",\"４\") &\"．\"","v":"４．"},null,"委託解除拠出金納付済",null,null,null,null,null,null,null,null,1]
[null,null,null,null,null,null,null,null,null,null,null,null,null,null,null,null,null,null,null,null,"事","業","場","T","E","L","03-3234-7415",null,null,null,null,null,null,null,null,null,null,null,null,null,null,null,null,null,null,"T","E","L","03-3234-6451"]
[null,"項目",null,null,null,null,null,null,"１．　労　災　保　険　及　び　一　般　拠　出　金　対　象　労　働　者　数　及　び　賃　金",null,null,null,null,null,null,null,null,null,null,null,null,null,null,null,null,null,null,null,null,null,null,null,null,null,null,null,null,null,null,null,null,null,null,null,null,null,null,null,null,null,null,null,null,null,null,null,null,null,null,null,null,null,null,null,null,null,null,null,null,"２．　雇　用　保　険　対　象　被　保　険　者　数　及　び　賃　金"]
[]
[]
[null,"月別"]
[null,null,null,null,null,null,null,null,"人 員",null,null,"　支　払　賃　金",null,null,null,null,null,null,null,null,null,"人 員",null,null,"　支　払　賃　金",null,null,null,null,null,null,null,null,null,"人 員",null,null,"　支　払　賃　金",null,null,null,null,null,null,null,null,null,"人 員",null,null,"　支　払　賃　金",null,null,null,null,null,null,null,null,null,null,"人 員",null,null,"　支　払　賃　金",null,null,null,null,null,null,null,null,null,"人 員",null,null,"　支　払　賃　金",null,null,null,null,null,null,null,null,null,"人 員",null,null,"　支　払　賃　金",null,null,null,null,null,null,null,null,null,"人 員",null,null,"　支　払　賃　金"]
[null,null,null,null,null,null,null,null,"人",null,null,"円",null,null,null,null,null,null,null,null,null,"人",null,null,"円",null,null,null,null,null,null,null,null,null,"人",null,null,"円",null,null,null,null,null,null,null,null,null,"人",null,null,"円",null,null,null,null,null,null,null,null,null,null,"人",null,null,"円",null,null,null,null,null,null,null,null,null,"人",null,null,"円",null,null,null,null,null,null,null,null,null,"人",null,null,"円",null,null,null,null,null,null,null,null,null,"人",null,null,"円"]
[null,null,4,4,4,null,"月",null,11,null,null,2768898,null,null,null,null,null,null,null,null,null,1,null,null,363510,null,null,null,null,null,null,null,null,null,0,null,null,0,null,null,null,null,null,null,null,null,null,{"$f":" IF(AND(ISBLANK(I23), ISBLANK(V23),ISBLANK(AI23)),\"\",(I23+V23+AI23))","v":12},null,null,{"$f":"L23+Y23+AL23","v":3132408},null,null,null,null,null,null,null,null,null,null,11,null,null,2768898,null,null,null,null,null,null,null,null,null,1,null,null,363510,null,null,null,null,null,null,null,null,null,{"$f":" IF(AND(ISBLANK(BJ23), ISBLANK(BW23)),\"\",(BJ23+BW23))","v":12},null,null,{"$f":"BM23+BZ23","v":3132408},null,null,null,null,null,null,null,null,null,2,null,null,484550]
[null,null,5,5,5,null,"月",null,11,null,null,2759845,null,null,null,null,null,null,null,null,null,1,null,null,366809,null,null,null,null,null,null,null,null,null,1,null,null,154554,null,null,null,null,null,null,null,null,null,13,null,null,3281208,null,null,null,null,null,null,null,null,null,null,11,null,null,2759845,null,null,null,null,null,null,null,null,null,1,null,null,366809,null,null,null,null,null,null,null,null,null,12,null,null,3126654,null,null,null,null,null,null,null,null,null,2,null,null,497384]
[null,null,6,6,6,null,"月",null,11,null,null,2738461,null,null,null,null,null,null,null,null,null,1,null,null,368177,null,null,null,null,null,null,null,null,null,1,null,null,142100,null,null,null,null,null,null,null,null,null,13,null,null,3248738,null,null,null,null,null,null,null,null,null,null,11,null,null,2738461,null,null,null,null,null,null,null,null,null,1,null,null,368177,null,null,null,null,null,null,null,null,null,12,null,null,3106638,null,null,null,null,null,null,null,null,null,2,null,null,516290]
[null,null,7,7,7,null,"月",null,11,null,null,2749515,null,null,null,null,null,null,null,null,null,1,null,null,354923,null,null,null,null,null,null,null,null,null,1,null,null,158350,null,null,null,null,null,null,null,null,null,13,null,null,3262788,null,null,null,null,null,null,null,null,null,null,11,null,null,2749515,null,null,null,null,null,null,null,null,null,1,null,null,354923,null,null,null,null,null,null,null,null,null,12,null,null,3104438,null,null,null,null,null,null,null,null,null,2,null,null,488765]
[null,null,8,8,8,null,"月",null,11,null,null,2821268,null,null,null,null,null,null,null,null,null,1,null,null,362118,null,null,null,null,null,null,null,null,null,1,null,null,166611,null,null,null,null,null,null,null,null,null,13,null,null,3349997,null,null,null,null,null,null,null,null,null,null,11,null,null,2821268,null,null,null,null,null,null,null,null,null,1,null,null,362118,null,null,null,null,null,null,null,null,null,12,null,null,3183386,null,null,null,null,null,null,null,null,null,2,null,null,499736]
[null,null,9,9,9,null,"月",null,11,null,null,2722413,null,null,null,null,null,null,null,null,null,1,null,null,363949,null,null,null,null,null,null,null,null,null,1,null,null,157300,null,null,null,null,null,null,null,null,null,13,null,null,3243662,null,null,null,null,null,null,null,null,null,null,11,null,null,2722413,null,null,null,null,null,null,null,null,null,1,null,null,363949,null,null,null,null,null,null,null,null,null,12,null,null,3086362,null,null,null,null,null,null,null,null,null,2,null,null,514008]
[null,null,10,10,10,null,"月",null,11,null,null,2899716,null,null,null,null,null,null,null,null,null,1,null,null,363668,null,null,null,null,null,null,null,null,null,1,null,null,183659,null,null,null,null,null,null,null,null,null,13,null,null,3447043,null,null,null,null,null,null,null,null,null,null,11,null,null,2899716,null,null,null,null,null,null,null,null,null,1,null,null,363668,null,null,null,null,null,null,null,null,null,12,null,null,3263384,null,null,null,null,null,null,null,null,null,2,null,null,483606]
[null,null,11,11,11,null,"月",null,11,null,null,2896855,null,null,null,null,null,null,null,null,null,1,null,null,365919,null,null,null,null,null,null,null,null,null,0,null,null,0,null,null,null,null,null,null,null,null,null,12,null,null,3262774,null,null,null,null,null,null,null,null,null,null,11,null,null,2896855,null,null,null,null,null,null,null,null,null,1,null,null,365919,null,null,null,null,null,null,null,null,null,12,null,null,3262774,null,null,null,null,null,null,null,null,null,2,null,null,499160]
[null,null,12,12,12,null,"月",null,11,null,null,2873226,null,null,null,null,null,null,null,null,null,1,null,null,360563,null,null,null,null,null,null,null,null,null,0,null,null,0,null,null,null,null,null,null,null,null,null,12,null,null,3233789,null,null,null,null,null,null,null,null,null,null,11,null,null,2873226,null,null,null,null,null,null,null,null,null,1,null,null,360563,null,null,null,null,null,null,null,null,null,12,null,null,3233789,null,null,null,null,null,null,null,null,null,2,null,null,489808]
[null,null,1,1,1,null,"月",null,11,null,null,2875869,null,null,null,null,null,null,null,null,null,1,null,null,362115,null,null,null,null,null,null,null,null,null,0,null,null,0,null,null,null,null,null,null,null,null,null,12,null,null,3237984,null,null,null,null,null,null,null,null,null,null,11,null,null,2875869,null,null,null,null,null,null,null,null,null,1,null,null,362115,null,null,null,null,null,null,null,null,null,12,null,null,3237984,null,null,null,null,null,null,null,null,null,2,null,null,499160]
[null,null,2,2,2,null,"月",null,11,null,null,2783193,null,null,null,null,null,null,null,null,null,1,null,null,361992,null,null,null,null,null,null,null,null,null,0,null,null,0,null,null,null,null,null,null,null,null,null,12,null,null,3145185,null,null,null,null,null,null,null,null,null,null,11,null,null,2783193,null,null,null,null,null,null,null,null,null,1,null,null,361992,null,null,null,null,null,null,null,null,null,12,null,null,3145185,null,null,null,null,null,null,null,null,null,2,null,null,498865]
[null,null,3,3,3,null,"月",null,11,null,null,2767933,null,null,null,null,null,null,null,null,null,null,null,null,372334,null,null,null,null,null,null,null,null,null,1,null,null,176401,null,null,null,null,null,null,null,null,null,12,null,null,3316668,null,null,null,null,null,null,null,null,null,null,11,null,null,2767933,null,null,null,null,null,null,null,null,null,1,null,null,372334,null,null,null,null,null,null,null,null,null,12,null,null,3140267,null,null,null,null,null,null,null,null,null,2,null,null,475688]
[null,"賞与等",null,null,7,null,"月",null,null,null,null,5591225,null,null,null,null,null,null,null,null,null,null,null,null,752115,null,null,null,null,null,null,null,null,null,null,null,null,null,null,null,null,null,null,null,null,null,null,"",null,null,6343340,null,null,null,null,null,null,null,null,null,null,null,null,null,5591225,null,null,null,null,null,null,null,null,null,null,null,null,752115,null,null,null,null,null,null,null,null,null,"",null,null,6343340,null,null,null,null,null,null,null,null,null,null,null,null,952736]
[null,"賞与等",null,null,12,null,"月",null,null,null,null,6670719,null,null,null,null,null,null,null,null,null,null,null,null,897325,null,null,null,null,null,null,null,null,null,null,null,null,null,null,null,null,null,null,null,null,null,null,"",null,null,7568044,null,null,null,null,null,null,null,null,null,null,null,null,null,6670719,null,null,null,null,null,null,null,null,null,null,null,null,897325,null,null,null,null,null,null,null,null,null,"",null,null,7568044,null,null,null,null,null,null,null,null,null,null,null,null,1142651]
[null,"賞与等",null,null,null,null,"月",null,null,null,null,null,null,null,null,null,null,null,null,null,null,null,null,null,null,null,null,null,null,null,null,null,null,null,null,null,null,null,null,null,null,null,null,null,null,null,null,"",null,null,0,null,null,null,null,null,null,null,null,null,null,null,null,null,null,null,null,null,null,null,null,null,null,null,null,null,null,null,null,null,null,null,null,null,null,null,null,"",null,null,0]
[null,"合　計",null,null,null,null,null,null,null,null,null,{"$f":"SUM(L23:U37)","v":45919136},null,null,null,null,null,null,null,null,null,null,null,null,{"$f":"SUM(Y23:AH37)","v":6015517},null,null,null,null,null,null,null,null,null,null,null,null,{"$f":"SUM(AL23:AU37)","v":1138975},null,null,null,null,null,null,null,null,null,{"$f":"IF(ISERROR(ROUNDDOWN(AVERAGE(AV23:AX34),0)),\"\",ROUNDDOWN(AVERAGE(AV23:AX34),0))","v":12},null,null,{"$f":"SUM(AY23:BH37)","v":53073628},null,null,null,null,null,null,null,null,null,null,null,null,null,{"$f":"SUM(BM23:BV37)","v":45919136},null,null,null,null,null,null,null,null,null,null,null,null,{"$f":"SUM(BZ23:CI37)","v":6015517},null,null,null,null,null,null,null,null,null,{"$f":"IF(ISERROR(ROUNDDOWN(AVERAGE(CJ23:CJ34),0)),\"\",ROUNDDOWN(AVERAGE(CJ23:CJ34),0))","v":12},null,null,{"$f":"SUM(CM23:CV37)","v":51934653},null,null,null,null,null,null,null,null,null,{"$f":"IF(ISERROR(ROUNDDOWN(AVERAGE(CW23:CW34),0)),\"\",ROUNDDOWN(AVERAGE(CW23:CW34),0))","v":2},null,null,{"$f":"SUM(CZ23:DI37)","v":8042407}]
[null,null,null,null,null,null,null,null,null,null,null,null,null,null,null,null,null,null,null,null,null,null,null,null,null,null,null,null,null,null,null,null,null,null,null,null,null,null,null,null,null,null,null,null,null,null,null,null,null,"人",{"$f":"ROUNDDOWN(AY38/1000,0)","v":53073},null,null,null,null,null,null,null,"千円",null,null,null,null,null,null,null,null,null,null,null,null,null,null,null,null,null,null,null,null,null,null,null,null,null,null,null,null,null,null,"人",{"$f":"ROUNDDOWN(CM38/1000,0)","v":51934},null,null,null,null,null,null,null,"千円",null,null,null,"人",{"$f":"ROUNDDOWN(CZ38/1000,0)","v":8042},null,null,null,null,null,null,null,"千円"]
[]
[null,null,null,null,null,null,null,null,null,null,null,null,null,null,null,null,null,null,null,null,null,null,null,null,null,null,null,null,null,"業種変更年月",null,null,null,null,null,null,null,"業種変更前\n（業種変更が無い時）",null,null,null,null,null,null,null,null,null,12,null,null,53073,null,null,null,null,null,null,null,"千円",null,null,null,null,null,null,null,null,null,null,null,null,null,null,null,null,null,null,null,null,"月　～",null,null,null,null,"月迄",null,null,12,null,null,51934,null,null,null,null,null,null,null,"千円",null,2,null,null,8042,null,null,null,null,null,null,null,"千円"]
[null,null,null,null,null,null,null,null,null,null,null,null,null,null,null,null,null,null,null,null,null,null,null,null,null,null,null,null,null,null,null,null,null,null,null,null,null,null,null,null,null,null,null,null,null,null,null,null,null,"人",null,null,null,null,null,null,null,null,null,null,null,null,null,null,null,null,null,null,null,null,null,null,null,null,null,null,null,null,null,null,null,null,null,null,null,null,null,null,null,"人",null,null,null,null,null,null,null,null,null,null,null,null,"人"]
[null,null,null,null,null,null,null,null,null,null,null,null,null,null,null,null,null,null,null,null,null,null,null,null,null,null,null,null,null,null,null,"年",null,null,null,"月",null,"業種変更後",null,null,null,null,null,null,null,null,null,null,null,null,0,null,null,null,null,null,null,null,"千円",null,null,null,null,null,null,null,null,null,null,null,null,null,null,null,null,null,null,null,null,null,null,null,null,null,null,null,null,null,null,null,null,null,null,null,null,null,null,null,"千円",null,null,null,null,null,null,null,null,null,null,null,null,"千円"]
[]
[]
[null,"NO",null,null,"特別加入者の氏名",null,null,null,null,null,null,null,null,null,null,null,null,null,null,"承認された\n基礎日額",null,null,null,null,"適用月数",null,null,null,"希望する\n基礎日額",null,null,null,null,null,"NO",null,null,"特別加入者の氏名",null,null,null,null,null,null,null,null,null,null,null,null,null,null,"承認された\n基礎日額",null,null,null,null,"適用月数",null,null,null,"希望する\n基礎日額",null,null,null,null,null,"NO",null,null,"特別加入者の氏名",null,null,null,null,null,null,null,null,null,null,null,null,null,null,"承認された\n基礎日額",null,null,null,null,"適用月数",null,null,null,"希望する\n基礎日額",null,null,null,null,null,"申告済概算保険料"]
[null,null,null,null,null,null,null,null,null,null,null,null,null,null,null,null,null,null,null,null,null,null,null,null,"確定",null,"概算",null,null,null,null,null,null,null,null,null,null,null,null,null,null,null,null,null,null,null,null,null,null,null,null,null,null,null,null,null,null,"確定",null,"概算",null,null,null,null,null,null,null,null,null,null,null,null,null,null,null,null,null,null,null,null,null,null,null,null,null,null,null,null,null,null,"確定",null,"概算",null,null,null,null,null,null,null,501302,null,null,null,null,null,null,null,null,null,null,"円"]
[null,"01",null,null,"山下　和昭",null,null,null,null,null,null,null,null,null,null,null,null,null,null,3500,null,null,null,null,12,null,12,null,35,null,null,"00",null,null,"",null,null,null,null,null,null,null,null,null,null,null,null,null,null,null,null,null,null,null,null,null,null,null,null,null,null,null,null,null,"00",null,null,"",null,null,null,null,null,null,null,null,null,null,null,null,null,null,null,null,null,null,null,null,null,null,null,null,null,null,null,null,null,"00"]
[null,"",null,null,null,null,null,null,null,null,null,null,null,null,null,null,null,null,null,null,null,null,null,null,null,null,null,null,null,null,null,"00",null,null,"",null,null,null,null,null,null,null,null,null,null,null,null,null,null,null,null,null,null,null,null,null,null,null,null,null,null,null,null,null,"00",null,null,"",null,null,null,null,null,null,null,null,null,null,null,null,null,null,null,null,null,null,null,null,null,null,null,null,null,null,null,null,null,"00",null,null,"作成者"]
[null,"",null,null,null,null,null,null,null,null,null,null,null,null,null,null,null,null,null,null,null,null,null,null,null,null,null,null,null,null,null,"00",null,null,"",null,null,null,null,null,null,null,null,null,null,null,null,null,null,null,null,null,null,null,null,null,null,null,null,null,null,null,null,null,"00",null,null,"",null,null,null,null,null,null,null,null,null,null,null,null,null,null,null,null,null,null,null,null,null,null,null,null,null,null,null,null,null,"00",null,null,"長田　聡",null,null,null,null,null,null,null,null,null,null,"印"]
[null,"",null,null,null,null,null,null,null,null,null,null,null,null,null,null,null,null,null,null,null,null,null,null,null,null,null,null,null,null,null,"00",null,null,"",null,null,null,null,null,null,null,null,null,null,null,null,null,null,null,null,null,null,null,null,null,null,null,null,null,null,null,null,null,"00",null,null,"",null,null,null,null,null,null,null,null,null,null,null,null,null,null,null,null,null,null,null,null,null,null,null,null,null,null,null,null,null,"00"]
[]
[null,"雇 用 保 険 料 免 除 高 年 齢 労 働 者 氏 名",null,null,null,null,null,null,null,null,null,null,null,null,null,null,null,null,null,null,null,null,null,null,null,null,null,null,null,null,null,null,null,null,null,null,null,null,null,null,null,null,null,null,null,null,null,null,null,null,null,null,null,null,null,null,null,null,null,null,null,null,null,null,null,null,null,null,null,null,null,null,null,null,null,null,null,null,null,null,null,null,null,null,null,null,null,"予備欄",null,null,null,null,"予備費"]
[null,"川崎　太郎",null,null,null,null,null,null,null,null,null,null,null,null,"片倉　健二",null,null,null,null,null,null,null,null,null,null,null,null,null,null,null,null,null,null,null,null,null,null,null,null,null,null,null,null,null,null,null,null,null,null,null,null,null,null,null,"上記のとおり報告します。"]
[null,"1929-12-03",null,null,null,null,null,null,null,null,null,null,null,null,"1930-04-06",null,null,null,null,null,null,null,null,null,null,null,null,null,null,null,null,null,null,null,null,null,null,null,null,null,null,null,null,null,null,null,null,null,null,null,null,null,null,null,null,null,null,null,null,null,null,null,null,null,null,null,null,null,null,null,"事業主氏名",null,null,null,null,null,null,null,null,null,null,null,null,null,null,null,null,null,null,"1 期",null,null,1000,null,null,null,null,null,"円",null,null,null,null,null,null,"円",null,null,null,null,null,null,"円"]
[null,null,null,null,null,null,null,null,null,null,null,null,null,null,null,null,null,null,null,null,null,null,null,null,null,null,null,null,null,null,null,null,null,null,null,null,null,null,null,null,null,null,null,null,null,null,null,null,null,null,null,null,null,null,"平成",null,null,22,null,"年",null,"4",null,"月",null,"1",null,"日",null,null,"山下　和昭",null,null,null,null,null,null,null,null,null,null,null,null,null,null,null,null,null,null,"２ 期",null,null,null,null,null,null,null,null,"円",null,null,null,null,null,null,"円",null,null,null,null,null,null,"円"]
[null,null,null,null,null,null,null,null,null,null,null,null,null,null,null,null,null,null,null,null,null,null,null,null,null,null,null,null,null,null,null,null,null,null,null,null,null,null,null,null,null,null,null,null,null,null,null,null,null,null,null,null,null,null,null,null,null,null,null,null,null,null,null,null,null,null,null,null,null,null,null,null,null,null,null,null,null,null,null,null,null,null,null,null,null,"印",null,null,null,"３ 期",null,null,null,null,null,null,null,null,"円",null,null,null,null,null,null,"円",null,null,null,null,null,null,"円"]